[Event "Titled Tuesday Blitz June 6 Late 2023"]
[White "Hoffmann, Asa"]
[Black "Fiorito, Joaquin"]
[WhiteFideId "2001470"]
[BlackFideId "180173"]
[WhiteElo "2117"]
[BlackElo "2199"]
[Result "1/2-1/2"]
[Round "1"]
[TimeControl "180+2"]
[Date "2023.06.07"]
[WhiteClock "0:00:09"]
[BlackClock "0:00:03"]
[Board "113"]

1. d4 {[%clk 0:02:55]}  Nf6 {[%clk 0:02:59]} 2. Bg5 {[%clk 0:02:51]}  Ne4 {[%clk 0:02:55]} 3. Bf4 {[%clk 0:02:50]}  d5 {[%clk 0:02:55]} 4. f3 {[%clk 0:02:50]}  Nf6 {[%clk 0:02:54]} 5. e4 {[%clk 0:02:50]}  e6 {[%clk 0:02:54]} 6. e5 {[%clk 0:02:50]}  Nfd7 {[%clk 0:02:55]} 7. Be3 {[%clk 0:02:50]}  c5 {[%clk 0:02:54]} 8. c3 {[%clk 0:02:50]}  Nc6 {[%clk 0:02:54]} 9. f4 {[%clk 0:02:50]}  Qb6 {[%clk 0:02:52]} 10. Qd2 {[%clk 0:02:50]}  a5 {[%clk 0:02:37]} 11. Nf3 {[%clk 0:02:49]}  a4 {[%clk 0:02:35]} 12. Bd3 {[%clk 0:02:42]}  cxd4 {[%clk 0:02:33]} 13. cxd4 {[%clk 0:02:41]}  a3 {[%clk 0:02:30]} 14. bxa3 {[%clk 0:02:23]}  Qa5 {[%clk 0:01:36]} 15. O-O {[%clk 0:01:59]}  Qxd2 {[%clk 0:01:36]} 16. Nfxd2 {[%clk 0:01:48]}  Nb6 {[%clk 0:01:31]} 17. Nb3 {[%clk 0:01:43]}  Be7 {[%clk 0:00:54]} 18. Nc3 {[%clk 0:01:40]}  Rxa3 {[%clk 0:00:45]} 19. Nb5 {[%clk 0:01:38]}  Ra4 {[%clk 0:00:44]} 20. Nd6+ {[%clk 0:01:30]}  Bxd6 {[%clk 0:00:43]} 21. exd6 {[%clk 0:01:30]}  Nc4 {[%clk 0:00:41]} 22. Bxc4 {[%clk 0:01:24]}  Rxc4 {[%clk 0:00:42]} 23. Rac1 {[%clk 0:01:19]}  Rxc1 {[%clk 0:00:38]} 24. Rxc1 {[%clk 0:01:18]}  Kd7 {[%clk 0:00:38]} 25. f5 {[%clk 0:01:12]}  Kxd6 {[%clk 0:00:32]} 26. Bf4+ {[%clk 0:01:10]}  Ke7 {[%clk 0:00:31]} 27. fxe6 {[%clk 0:01:09]}  fxe6 {[%clk 0:00:31]} 28. Bg5+ {[%clk 0:01:03]}  Kf7 {[%clk 0:00:28]} 29. Rf1+ {[%clk 0:01:01]}  Kg6 {[%clk 0:00:28]} 30. Bf4 {[%clk 0:00:59]}  b6 {[%clk 0:00:25]} 31. Bc7 {[%clk 0:00:56]}  Ba6 {[%clk 0:00:24]} 32. Rc1 {[%clk 0:00:54]}  Bc4 {[%clk 0:00:24]} 33. Bxb6 {[%clk 0:00:52]}  Ra8 {[%clk 0:00:25]} 34. Nd2 {[%clk 0:00:45]}  Ra4 {[%clk 0:00:21]} 35. Bc5 {[%clk 0:00:39]}  Bxa2 {[%clk 0:00:19]} 36. Ra1 {[%clk 0:00:37]}  Kf5 {[%clk 0:00:13]} 37. Kf2 {[%clk 0:00:37]}  e5 {[%clk 0:00:14]} 38. Ke3 {[%clk 0:00:34]}  exd4+ {[%clk 0:00:13]} 39. Kf2 {[%clk 0:00:27]}  g6 {[%clk 0:00:09]} 40. h3 {[%clk 0:00:24]}  d3 {[%clk 0:00:08]} 41. g4+ {[%clk 0:00:23]}  Ke5 {[%clk 0:00:07]} 42. Ke3 {[%clk 0:00:22]}  d4+ {[%clk 0:00:07]} 43. Kxd3 {[%clk 0:00:20]}  Kd5 {[%clk 0:00:07]} 44. Bf8 {[%clk 0:00:17]}  Bc4+ {[%clk 0:00:07]} 45. Nxc4 {[%clk 0:00:17]}  Rxa1 {[%clk 0:00:08]} 46. Nd2 {[%clk 0:00:15]}  Ne5+ {[%clk 0:00:08]} 47. Ke2 {[%clk 0:00:15]}  Ra2 {[%clk 0:00:09]} 48. Ke1 {[%clk 0:00:13]}  Nc4 {[%clk 0:00:08]} 49. Nf3 {[%clk 0:00:12]}  d3 {[%clk 0:00:08]} 50. Bh6 {[%clk 0:00:11]}  Re2+ {[%clk 0:00:07]} 51. Kf1 {[%clk 0:00:10]}  Ne3+ {[%clk 0:00:06]} 52. Kg1 {[%clk 0:00:09]}  Nc4 {[%clk 0:00:05]} 53. Kf1 {[%clk 0:00:09]}  Re8 {[%clk 0:00:05]} 54. Kf2 {[%clk 0:00:09]}  Re2+ {[%clk 0:00:03]} 55. Kf1 {[%clk 0:00:09]} 1/2-1/2


[Site "https://www.chess.com"]

[Event "Titled Tuesday Blitz June 6 Late 2023"]
[White "Arun, Siddharth"]
[Black "Injac, Teodora"]
[WhiteFideId "2079178"]
[BlackFideId "932400"]
[WhiteElo "2356"]
[BlackElo "2269"]
[Result "0-1"]
[Round "1"]
[TimeControl "180+2"]
[Date "2023.06.07"]
[WhiteClock "0:00:17"]
[BlackClock "0:00:03"]
[Board "115"]

1. d4 {[%clk 0:02:58]}  Nf6 {[%clk 0:02:59]} 2. Nc3 {[%clk 0:02:58]}  d5 {[%clk 0:02:59]} 3. Bf4 {[%clk 0:02:58]}  c6 {[%clk 0:02:56]} 4. e3 {[%clk 0:02:57]}  Bf5 {[%clk 0:02:52]} 5. f3 {[%clk 0:02:58]}  h5 {[%clk 0:02:52]} 6. Bd3 {[%clk 0:02:56]}  e6 {[%clk 0:02:48]} 7. Nge2 {[%clk 0:02:55]}  Nbd7 {[%clk 0:02:44]} 8. e4 {[%clk 0:02:49]}  dxe4 {[%clk 0:02:37]} 9. fxe4 {[%clk 0:02:48]}  Bg4 {[%clk 0:02:37]} 10. h3 {[%clk 0:02:48]}  Bxe2 {[%clk 0:02:36]} 11. Qxe2 {[%clk 0:02:47]}  Qb6 {[%clk 0:02:32]} 12. O-O-O {[%clk 0:02:42]}  Bb4 {[%clk 0:02:25]} 13. Be3 {[%clk 0:02:31]}  Qa5 {[%clk 0:02:23]} 14. Nb1 {[%clk 0:02:19]}  Qxa2 {[%clk 0:02:12]} 15. c3 {[%clk 0:02:18]}  Be7 {[%clk 0:02:07]} 16. g4 {[%clk 0:02:11]}  Nb6 {[%clk 0:02:00]} 17. g5 {[%clk 0:02:06]}  Nfd7 {[%clk 0:01:59]} 18. Rhf1 {[%clk 0:02:04]}  g6 {[%clk 0:01:57]} 19. e5 {[%clk 0:01:35]}  Rf8 {[%clk 0:01:40]} 20. Rf2 {[%clk 0:01:24]}  Nd5 {[%clk 0:01:36]} 21. Rdf1 {[%clk 0:01:22]}  Nxe3 {[%clk 0:00:29]} 22. Qxe3 {[%clk 0:01:21]}  Nb6 {[%clk 0:00:29]} 23. Rxf7 {[%clk 0:01:16]}  Rxf7 {[%clk 0:00:18]} 24. Bxg6 {[%clk 0:01:15]}  O-O-O {[%clk 0:00:18]} 25. Bxf7 {[%clk 0:01:09]}  Na4 {[%clk 0:00:16]} 26. Rf2 {[%clk 0:01:08]}  Kb8 {[%clk 0:00:14]} 27. g6 {[%clk 0:01:08]}  Bf8 {[%clk 0:00:09]} 28. Qg5 {[%clk 0:00:55]}  Rc8 {[%clk 0:00:07]} 29. g7 {[%clk 0:00:55]}  Bxg7 {[%clk 0:00:07]} 30. Qxg7 {[%clk 0:00:54]}  c5 {[%clk 0:00:08]} 31. d5 {[%clk 0:00:33]}  exd5 {[%clk 0:00:05]} 32. e6 {[%clk 0:00:33]}  c4 {[%clk 0:00:02]} 33. Qe5+ {[%clk 0:00:31]}  Ka8 {[%clk 0:00:02]} 34. e7 {[%clk 0:00:21]}  Nc5 {[%clk 0:00:02]} 35. e8=Q {[%clk 0:00:20]}  Nd3+ {[%clk 0:00:03]} 36. Kd1 {[%clk 0:00:20]}  Qxb1+ {[%clk 0:00:03]} 37. Ke2 {[%clk 0:00:20]}  Qe1+ {[%clk 0:00:03]} 38. Kf3 {[%clk 0:00:20]}  Nxe5+ {[%clk 0:00:01]} 39. Kg2 {[%clk 0:00:18]}  Rxe8 {[%clk 0:00:01]} 40. Bxe8 {[%clk 0:00:18]}  Qe4+ {[%clk 0:00:02]} 41. Kh2 {[%clk 0:00:18]}  Nf3+ {[%clk 0:00:02]} 42. Kg3 {[%clk 0:00:17]}  Qxe8 {[%clk 0:00:02]} 43. Rxf3 {[%clk 0:00:18]}  Qg6+ {[%clk 0:00:03]} 44. Kh4 {[%clk 0:00:18]}  a5 {[%clk 0:00:03]} 45. Rg3 {[%clk 0:00:16]}  Qf6+ {[%clk 0:00:03]} 46. Rg5 {[%clk 0:00:16]}  Ka7 {[%clk 0:00:04]} 47. Kxh5 {[%clk 0:00:16]}  a4 {[%clk 0:00:03]} 48. Rxd5 {[%clk 0:00:17]}  Qf3+ {[%clk 0:00:03]} 0-1


[Site "https://www.chess.com"]

[Event "Titled Tuesday Blitz June 6 Late 2023"]
[White "Melikyan, Gnel"]
[Black "Sairam, Pranav"]
[WhiteFideId "54109990"]
[BlackFideId "30951330"]
[WhiteElo "2138"]
[BlackElo "1918"]
[Result "1/2-1/2"]
[Round "1"]
[TimeControl "180+2"]
[Date "2023.06.07"]
[WhiteClock "0:00:04"]
[BlackClock "0:00:10"]
[Board "116"]

1. Na3 {[%clk 0:02:53]}  e5 {[%clk 0:02:55]} 2. Nc4 {[%clk 0:02:52]}  Nc6 {[%clk 0:02:54]} 3. g3 {[%clk 0:02:48]}  d5 {[%clk 0:02:54]} 4. Ne3 {[%clk 0:02:48]}  Nf6 {[%clk 0:02:54]} 5. Bg2 {[%clk 0:02:47]}  Be6 {[%clk 0:02:52]} 6. Nf3 {[%clk 0:02:46]}  h6 {[%clk 0:02:50]} 7. O-O {[%clk 0:02:46]}  Qd7 {[%clk 0:02:39]} 8. c3 {[%clk 0:02:44]}  O-O-O {[%clk 0:02:28]} 9. Qa4 {[%clk 0:02:31]}  e4 {[%clk 0:02:22]} 10. Nd4 {[%clk 0:02:25]}  Nxd4 {[%clk 0:02:21]} 11. Qxd7+ {[%clk 0:02:20]}  Bxd7 {[%clk 0:02:12]} 12. cxd4 {[%clk 0:02:21]}  Bb5 {[%clk 0:02:12]} 13. Re1 {[%clk 0:02:21]}  c5 {[%clk 0:02:02]} 14. Nc2 {[%clk 0:02:17]}  c4 {[%clk 0:01:55]} 15. b3 {[%clk 0:02:13]}  cxb3 {[%clk 0:01:53]} 16. axb3 {[%clk 0:02:13]}  Kb8 {[%clk 0:01:52]} 17. Ba3 {[%clk 0:02:12]}  Rc8 {[%clk 0:01:48]} 18. Ne3 {[%clk 0:02:05]}  Bxa3 {[%clk 0:01:41]} 19. Rxa3 {[%clk 0:02:06]}  Rc7 {[%clk 0:01:35]} 20. Raa1 {[%clk 0:02:01]}  g6 {[%clk 0:01:26]} 21. Kf1 {[%clk 0:01:58]}  h5 {[%clk 0:01:20]} 22. h4 {[%clk 0:01:52]}  Rc6 {[%clk 0:01:12]} 23. f3 {[%clk 0:01:39]}  Re8 {[%clk 0:01:00]} 24. Kf2 {[%clk 0:01:37]}  exf3 {[%clk 0:00:46]} 25. exf3 {[%clk 0:01:35]}  Bd3 {[%clk 0:00:42]} 26. Ra5 {[%clk 0:01:20]}  b6 {[%clk 0:00:40]} 27. Raa1 {[%clk 0:01:13]}  Kb7 {[%clk 0:00:21]} 28. Bh3 {[%clk 0:00:54]}  a6 {[%clk 0:00:16]} 29. Rec1 {[%clk 0:00:41]}  Bb5 {[%clk 0:00:12]} 30. Rc3 {[%clk 0:00:37]}  Re7 {[%clk 0:00:10]} 31. Rac1 {[%clk 0:00:31]}  Rec7 {[%clk 0:00:09]} 32. Bg2 {[%clk 0:00:26]}  a5 {[%clk 0:00:08]} 33. f4 {[%clk 0:00:23]}  Ne4+ {[%clk 0:00:07]} 34. Bxe4 {[%clk 0:00:22]}  dxe4 {[%clk 0:00:07]} 35. d5 {[%clk 0:00:22]}  Rc5 {[%clk 0:00:04]} 36. d6 {[%clk 0:00:19]}  Rxc3 {[%clk 0:00:04]} 37. dxc3 {[%clk 0:00:18]}  Rd7 {[%clk 0:00:04]} 38. c4 {[%clk 0:00:18]}  Bc6 {[%clk 0:00:04]} 39. Rd1 {[%clk 0:00:18]}  f5 {[%clk 0:00:04]} 40. Nc2 {[%clk 0:00:14]}  b5 {[%clk 0:00:04]} 41. Ke3 {[%clk 0:00:13]}  a4 {[%clk 0:00:03]} 42. bxa4 {[%clk 0:00:12]}  bxc4 {[%clk 0:00:03]} 43. a5 {[%clk 0:00:12]}  Ka6 {[%clk 0:00:03]} 44. Nb4+ {[%clk 0:00:12]}  Kb5 {[%clk 0:00:03]} 45. Nc2 {[%clk 0:00:04]}  Kc5 {[%clk 0:00:03]} 46. a6 {[%clk 0:00:04]}  Rxd6 {[%clk 0:00:02]} 47. Rxd6 {[%clk 0:00:05]}  Kxd6 {[%clk 0:00:03]} 48. Kd4 {[%clk 0:00:05]}  Kc7 {[%clk 0:00:04]} 49. Kxc4 {[%clk 0:00:05]}  Kb6 {[%clk 0:00:04]} 50. Nb4 {[%clk 0:00:05]}  Bb5+ {[%clk 0:00:04]} 51. Kd4 {[%clk 0:00:05]}  Bxa6 {[%clk 0:00:05]} 52. Nd5+ {[%clk 0:00:06]}  Kc6 {[%clk 0:00:05]} 53. Ne7+ {[%clk 0:00:06]}  Kd7 {[%clk 0:00:05]} 54. Nxg6 {[%clk 0:00:07]}  Ke6 {[%clk 0:00:06]} 55. Ne5 {[%clk 0:00:07]}  Be2 {[%clk 0:00:06]} 56. Ke3 {[%clk 0:00:08]}  Bg4 {[%clk 0:00:06]} 57. Nc6 {[%clk 0:00:08]}  Kf6 {[%clk 0:00:06]} 58. Nd4 {[%clk 0:00:09]}  Kg6 {[%clk 0:00:07]} 59. Nc2 {[%clk 0:00:08]}  Kf6 {[%clk 0:00:08]} 60. Kd4 {[%clk 0:00:09]}  Kg6 {[%clk 0:00:08]} 61. Ne3 {[%clk 0:00:09]}  Kf6 {[%clk 0:00:09]} 62. Kd5 {[%clk 0:00:09]}  Kg6 {[%clk 0:00:10]} 63. Ke6 {[%clk 0:00:10]}  Bh3 {[%clk 0:00:09]} 64. Ke5 {[%clk 0:00:10]}  Bg4 {[%clk 0:00:09]} 65. Nd5 {[%clk 0:00:08]}  Bh3 {[%clk 0:00:10]} 66. Nc3 {[%clk 0:00:08]}  Bg4 {[%clk 0:00:11]} 67. Nb1 {[%clk 0:00:07]}  Bh3 {[%clk 0:00:11]} 68. Nd2 {[%clk 0:00:07]}  Bg4 {[%clk 0:00:12]} 69. Nc4 {[%clk 0:00:08]}  Bh3 {[%clk 0:00:12]} 70. Ke6 {[%clk 0:00:08]}  Bg4 {[%clk 0:00:12]} 71. Ne5+ {[%clk 0:00:08]}  Kh6 {[%clk 0:00:12]} 72. Kf6 {[%clk 0:00:08]}  Kh7 {[%clk 0:00:12]} 73. Ke6 {[%clk 0:00:05]}  Kh6 {[%clk 0:00:12]} 74. Kd5 {[%clk 0:00:05]}  Kg7 {[%clk 0:00:12]} 75. Kd4 {[%clk 0:00:05]}  Kf6 {[%clk 0:00:13]} 76. Nc4 {[%clk 0:00:05]}  Bh3 {[%clk 0:00:13]} 77. Ke3 {[%clk 0:00:06]}  Bg4 {[%clk 0:00:14]} 78. Nb6 {[%clk 0:00:06]}  Bh3 {[%clk 0:00:14]} 79. Nd7+ {[%clk 0:00:06]}  Ke7 {[%clk 0:00:14]} 80. Ne5 {[%clk 0:00:06]}  Ke6 {[%clk 0:00:10]} 81. Kd4 {[%clk 0:00:06]}  Kf6 {[%clk 0:00:11]} 82. Kd5 {[%clk 0:00:06]}  Bg4 {[%clk 0:00:11]} 83. Nc4 {[%clk 0:00:06]}  Kg6 {[%clk 0:00:10]} 84. Ke6 {[%clk 0:00:06]}  Kg7 {[%clk 0:00:11]} 85. Ke5 {[%clk 0:00:06]}  Kg6 {[%clk 0:00:11]} 86. Ne3 {[%clk 0:00:06]}  Kg7 {[%clk 0:00:11]} 87. Ke6 {[%clk 0:00:04]}  Kg6 {[%clk 0:00:11]} 88. Ke7 {[%clk 0:00:04]}  Kg7 {[%clk 0:00:11]} 89. Nd5 {[%clk 0:00:05]}  Kg6 {[%clk 0:00:12]} 90. Kf8 {[%clk 0:00:05]}  Bh3 {[%clk 0:00:11]} 91. Kg8 {[%clk 0:00:04]}  Bg4 {[%clk 0:00:11]} 92. Kf8 {[%clk 0:00:04]}  Bh3 {[%clk 0:00:11]} 93. Ke7 {[%clk 0:00:04]}  Bg4 {[%clk 0:00:12]} 94. Ke6 {[%clk 0:00:04]}  Bh3 {[%clk 0:00:12]} 95. Ne3 {[%clk 0:00:04]}  Bg4 {[%clk 0:00:12]} 96. Ng2 {[%clk 0:00:04]}  Bf3 {[%clk 0:00:11]} 97. Ne1 {[%clk 0:00:04]}  Bg4 {[%clk 0:00:10]} 98. Ke5 {[%clk 0:00:04]}  Bh3 {[%clk 0:00:10]} 99. Nc2 {[%clk 0:00:04]}  Bg4 {[%clk 0:00:10]} 100. Nd4 {[%clk 0:00:05]}  Kf7 {[%clk 0:00:11]} 101. Kd5 {[%clk 0:00:03]}  Ke7 {[%clk 0:00:10]} 102. Nc2 {[%clk 0:00:03]}  Kf6 {[%clk 0:00:10]} 103. Ne3 {[%clk 0:00:04]}  Kf7 {[%clk 0:00:10]} 104. Ke5 {[%clk 0:00:04]} 1/2-1/2


[Site "https://www.chess.com"]

[Event "Titled Tuesday Blitz June 6 Late 2023"]
[White "MaryanKyrychenko"]
[Black "Bogaudinov, Rushan"]
[BlackFideId "4129288"]
[WhiteElo "2628"]
[BlackElo "1967"]
[Result "1-0"]
[Round "1"]
[TimeControl "180+2"]
[Date "2023.06.07"]
[WhiteClock "0:00:18"]
[BlackClock "0:00:10"]
[Board "118"]

1. e4 {[%clk 0:01:48]}  c5 {[%clk 0:02:58]} 2. Nc3 {[%clk 0:01:40]}  Nc6 {[%clk 0:02:55]} 3. f4 {[%clk 0:01:40]}  e6 {[%clk 0:02:50]} 4. Nf3 {[%clk 0:01:37]}  d5 {[%clk 0:02:49]} 5. Bb5 {[%clk 0:01:37]}  Nf6 {[%clk 0:02:41]} 6. Bxc6+ {[%clk 0:01:38]}  bxc6 {[%clk 0:02:36]} 7. d3 {[%clk 0:01:39]}  Ba6 {[%clk 0:02:30]} 8. e5 {[%clk 0:01:36]}  Nd7 {[%clk 0:02:24]} 9. O-O {[%clk 0:01:37]}  c4 {[%clk 0:02:23]} 10. d4 {[%clk 0:01:37]}  c5 {[%clk 0:02:21]} 11. Be3 {[%clk 0:01:37]}  cxd4 {[%clk 0:02:20]} 12. Nxd4 {[%clk 0:01:38]}  Bc5 {[%clk 0:02:02]} 13. f5 {[%clk 0:01:38]}  Nxe5 {[%clk 0:01:37]} 14. fxe6 {[%clk 0:01:36]}  f6 {[%clk 0:01:37]} 15. Na4 {[%clk 0:01:16]}  Be7 {[%clk 0:01:28]} 16. Nf5 {[%clk 0:01:12]}  O-O {[%clk 0:01:27]} 17. Qxd5 {[%clk 0:01:11]}  Re8 {[%clk 0:01:16]} 18. Nxe7+ {[%clk 0:00:54]}  Qxe7 {[%clk 0:01:12]} 19. Nc5 {[%clk 0:00:51]}  Rad8 {[%clk 0:01:06]} 20. Qe4 {[%clk 0:00:51]}  Bc8 {[%clk 0:01:05]} 21. Rad1 {[%clk 0:00:51]}  Bxe6 {[%clk 0:01:02]} 22. c3 {[%clk 0:00:45]}  Bf7 {[%clk 0:01:01]} 23. Bd4 {[%clk 0:00:42]}  Nd3 {[%clk 0:00:52]} 24. Qxe7 {[%clk 0:00:40]}  Rxe7 {[%clk 0:00:52]} 25. Nxd3 {[%clk 0:00:39]}  cxd3 {[%clk 0:00:53]} 26. Rfe1 {[%clk 0:00:31]}  Rxe1+ {[%clk 0:00:51]} 27. Rxe1 {[%clk 0:00:32]}  Bxa2 {[%clk 0:00:48]} 28. Kf2 {[%clk 0:00:32]}  Bb3 {[%clk 0:00:42]} 29. Ke3 {[%clk 0:00:30]}  Bc2 {[%clk 0:00:40]} 30. Kd2 {[%clk 0:00:29]}  a6 {[%clk 0:00:38]} 31. b4 {[%clk 0:00:28]}  Kf7 {[%clk 0:00:37]} 32. Ra1 {[%clk 0:00:27]}  Rd6 {[%clk 0:00:36]} 33. Ra5 {[%clk 0:00:26]}  Re6 {[%clk 0:00:36]} 34. Be3 {[%clk 0:00:24]}  g5 {[%clk 0:00:36]} 35. g3 {[%clk 0:00:23]}  h6 {[%clk 0:00:35]} 36. c4 {[%clk 0:00:22]}  Kg6 {[%clk 0:00:34]} 37. b5 {[%clk 0:00:23]}  axb5 {[%clk 0:00:34]} 38. cxb5 {[%clk 0:00:24]}  Kh5 {[%clk 0:00:31]} 39. b6 {[%clk 0:00:24]}  Re8 {[%clk 0:00:29]} 40. b7 {[%clk 0:00:23]}  Rb8 {[%clk 0:00:21]} 41. Rb5 {[%clk 0:00:23]}  Ba4 {[%clk 0:00:21]} 42. Rb6 {[%clk 0:00:23]}  Bc6 {[%clk 0:00:17]} 43. Rxc6 {[%clk 0:00:23]}  Rxb7 {[%clk 0:00:18]} 44. Kxd3 {[%clk 0:00:23]}  Rb2 {[%clk 0:00:16]} 45. Bd2 {[%clk 0:00:22]}  f5 {[%clk 0:00:15]} 46. Ke2 {[%clk 0:00:20]}  Rb8 {[%clk 0:00:13]} 47. Kf3 {[%clk 0:00:20]}  Rd8 {[%clk 0:00:12]} 48. Be3 {[%clk 0:00:19]}  Rd3 {[%clk 0:00:12]} 49. h3 {[%clk 0:00:19]}  g4+ {[%clk 0:00:11]} 50. Ke2 {[%clk 0:00:18]}  Rd5 {[%clk 0:00:10]} 51. Rxh6# {[%clk 0:00:18]} 1-0


[Site "https://www.chess.com"]

[Event "Titled Tuesday Blitz June 6 Late 2023"]
[White "Domingo Nunez, Alejandro"]
[Black "Senft, Sean"]
[WhiteFideId "22245561"]
[BlackFideId "2044960"]
[WhiteElo "2291"]
[BlackElo "1989"]
[Result "0-1"]
[Round "1"]
[TimeControl "180+2"]
[Date "2023.06.07"]
[WhiteClock "0:00:01"]
[BlackClock "0:00:17"]
[Board "120"]

1. Nf3 {[%clk 0:03:00]}  d5 {[%clk 0:02:56]} 2. g3 {[%clk 0:03:00]}  Nf6 {[%clk 0:02:56]} 3. Bg2 {[%clk 0:03:00]}  c5 {[%clk 0:02:55]} 4. O-O {[%clk 0:02:59]}  Nc6 {[%clk 0:02:55]} 5. d4 {[%clk 0:03:00]}  e6 {[%clk 0:02:54]} 6. c4 {[%clk 0:02:59]}  cxd4 {[%clk 0:02:53]} 7. Nxd4 {[%clk 0:02:56]}  Nxd4 {[%clk 0:02:52]} 8. Qxd4 {[%clk 0:02:55]}  Be7 {[%clk 0:02:52]} 9. cxd5 {[%clk 0:02:46]}  exd5 {[%clk 0:02:51]} 10. Nc3 {[%clk 0:02:46]}  Be6 {[%clk 0:02:50]} 11. Bg5 {[%clk 0:02:43]}  O-O {[%clk 0:02:49]} 12. Rad1 {[%clk 0:02:43]}  h6 {[%clk 0:02:48]} 13. Bxf6 {[%clk 0:02:22]}  Bxf6 {[%clk 0:02:47]} 14. Qb4 {[%clk 0:02:23]}  d4 {[%clk 0:02:36]} 15. e3 {[%clk 0:02:01]}  d3 {[%clk 0:02:28]} 16. Qxb7 {[%clk 0:01:31]}  Rb8 {[%clk 0:02:25]} 17. Qa6 {[%clk 0:01:31]}  Rxb2 {[%clk 0:02:21]} 18. Rxd3 {[%clk 0:01:31]}  Qc7 {[%clk 0:02:00]} 19. Nd5 {[%clk 0:01:24]}  Qc2 {[%clk 0:01:49]} 20. Nxf6+ {[%clk 0:01:12]}  gxf6 {[%clk 0:01:50]} 21. Rd4 {[%clk 0:01:12]}  Rxa2 {[%clk 0:01:39]} 22. Qb5 {[%clk 0:01:12]}  Rc8 {[%clk 0:01:34]} 23. Be4 {[%clk 0:01:09]}  Qc5 {[%clk 0:01:04]} 24. Qb1 {[%clk 0:01:09]}  a5 {[%clk 0:01:00]} 25. Qd1 {[%clk 0:01:05]}  Bh3 {[%clk 0:00:50]} 26. Re1 {[%clk 0:01:02]}  Kg7 {[%clk 0:00:47]} 27. Bb1 {[%clk 0:00:56]}  Rb2 {[%clk 0:00:44]} 28. Rh4 {[%clk 0:00:54]}  Be6 {[%clk 0:00:41]} 29. Qd3 {[%clk 0:00:49]}  Qc3 {[%clk 0:00:39]} 30. Qh7+ {[%clk 0:00:48]}  Kf8 {[%clk 0:00:39]} 31. Qxh6+ {[%clk 0:00:27]}  Ke7 {[%clk 0:00:39]} 32. Rf1 {[%clk 0:00:27]}  Rcb8 {[%clk 0:00:31]} 33. Be4 {[%clk 0:00:17]}  a4 {[%clk 0:00:31]} 34. Qf4 {[%clk 0:00:04]}  a3 {[%clk 0:00:28]} 35. Bf5 {[%clk 0:00:02]}  a2 {[%clk 0:00:23]} 36. Bxe6 {[%clk 0:00:02]}  Kxe6 {[%clk 0:00:15]} 37. Qe4+ {[%clk 0:00:03]}  Kd7 {[%clk 0:00:12]} 38. Qd5+ {[%clk 0:00:03]}  Kc7 {[%clk 0:00:13]} 39. Rc4+ {[%clk 0:00:03]}  Qxc4 {[%clk 0:00:14]} 40. Qxc4+ {[%clk 0:00:04]}  Kd7 {[%clk 0:00:14]} 41. Qd4+ {[%clk 0:00:04]}  Ke7 {[%clk 0:00:15]} 42. Qc5+ {[%clk 0:00:04]}  Ke8 {[%clk 0:00:15]} 43. Qc6+ {[%clk 0:00:03]}  Kf8 {[%clk 0:00:15]} 44. Qd6+ {[%clk 0:00:03]}  Kg7 {[%clk 0:00:16]} 45. Qa3 {[%clk 0:00:03]}  R8b3 {[%clk 0:00:15]} 46. Qa4 {[%clk 0:00:03]}  Rb4 {[%clk 0:00:15]} 47. Qa5 {[%clk 0:00:02]}  Rb5 {[%clk 0:00:16]} 48. Qa3 {[%clk 0:00:01]}  R5b3 {[%clk 0:00:16]} 49. Qa6 {[%clk 0:00:01]}  Rb6 {[%clk 0:00:16]} 50. Qa5 {[%clk 0:00:01]}  R6b5 {[%clk 0:00:17]} 51. Qa4 {[%clk 0:00:01]}  Rb8 {[%clk 0:00:17]} 0-1


[Site "https://www.chess.com"]

[Event "Titled Tuesday Blitz June 6 Late 2023"]
[White "Prieto Aranguren, Alain"]
[Black "Gomez Ledo, Roberto Carlos"]
[WhiteFideId "2268906"]
[BlackFideId "3507076"]
[WhiteElo "2209"]
[BlackElo "2378"]
[Result "0-1"]
[Round "1"]
[TimeControl "180+2"]
[Date "2023.06.07"]
[WhiteClock "0:00:09"]
[BlackClock "0:00:22"]
[Board "121"]

1. d4 {[%clk 0:02:51]}  Nf6 {[%clk 0:02:58]} 2. c4 {[%clk 0:02:49]}  e6 {[%clk 0:02:58]} 3. Nc3 {[%clk 0:02:46]}  Bb4 {[%clk 0:02:57]} 4. e3 {[%clk 0:02:46]}  O-O {[%clk 0:02:55]} 5. Bd3 {[%clk 0:02:46]}  d5 {[%clk 0:02:54]} 6. Nf3 {[%clk 0:02:46]}  c5 {[%clk 0:02:54]} 7. O-O {[%clk 0:02:45]}  cxd4 {[%clk 0:02:49]} 8. exd4 {[%clk 0:02:45]}  dxc4 {[%clk 0:02:49]} 9. Bxc4 {[%clk 0:02:45]}  Bxc3 {[%clk 0:02:47]} 10. bxc3 {[%clk 0:02:44]}  b6 {[%clk 0:02:45]} 11. Bg5 {[%clk 0:02:43]}  Nbd7 {[%clk 0:02:44]} 12. Bd3 {[%clk 0:02:29]}  Qc7 {[%clk 0:02:43]} 13. Qe2 {[%clk 0:02:23]}  Bb7 {[%clk 0:02:40]} 14. Rac1 {[%clk 0:02:15]}  h6 {[%clk 0:02:35]} 15. Bh4 {[%clk 0:02:14]}  Nh5 {[%clk 0:02:23]} 16. Bg3 {[%clk 0:02:08]}  Nxg3 {[%clk 0:02:22]} 17. hxg3 {[%clk 0:02:07]}  Rac8 {[%clk 0:02:16]} 18. Rfe1 {[%clk 0:02:06]}  Rfd8 {[%clk 0:02:15]} 19. Bb1 {[%clk 0:01:56]}  Bd5 {[%clk 0:02:01]} 20. Qd3 {[%clk 0:01:53]}  f5 {[%clk 0:01:53]} 21. Qe2 {[%clk 0:01:47]}  Qc4 {[%clk 0:01:50]} 22. Qb2 {[%clk 0:01:32]}  b5 {[%clk 0:01:37]} 23. Ne5 {[%clk 0:01:26]}  Nxe5 {[%clk 0:01:35]} 24. Rxe5 {[%clk 0:01:25]}  a5 {[%clk 0:01:33]} 25. g4 {[%clk 0:01:25]}  b4 {[%clk 0:01:21]} 26. gxf5 {[%clk 0:01:25]}  bxc3 {[%clk 0:01:21]} 27. Qc2 {[%clk 0:01:23]}  Qxd4 {[%clk 0:01:16]} 28. Re3 {[%clk 0:00:56]}  Qd2 {[%clk 0:01:08]} 29. fxe6 {[%clk 0:00:47]}  Qxc2 {[%clk 0:01:08]} 30. Bxc2 {[%clk 0:00:45]}  Re8 {[%clk 0:00:51]} 31. Bg6 {[%clk 0:00:39]}  Rxe6 {[%clk 0:00:44]} 32. Rxe6 {[%clk 0:00:15]}  Bxe6 {[%clk 0:00:45]} 33. a3 {[%clk 0:00:14]}  Bb3 {[%clk 0:00:41]} 34. Bc2 {[%clk 0:00:12]}  a4 {[%clk 0:00:38]} 35. Kf1 {[%clk 0:00:11]}  Kf7 {[%clk 0:00:27]} 36. Ke2 {[%clk 0:00:10]}  Bc4+ {[%clk 0:00:23]} 37. Bd3 {[%clk 0:00:09]}  Re8+ {[%clk 0:00:22]} 0-1


[Site "https://www.chess.com"]

[Event "Titled Tuesday Blitz June 6 Late 2023"]
[White "Hollan, Petr"]
[Black "Skatchkov, Pavel"]
[WhiteFideId "360945"]
[BlackFideId "4121848"]
[WhiteElo "2254"]
[BlackElo "2476"]
[Result "0-1"]
[Round "1"]
[TimeControl "180+2"]
[Date "2023.06.07"]
[WhiteClock "0:01:42"]
[BlackClock "0:01:36"]
[Board "125"]

1. e4 {[%clk 0:02:58]}  e5 {[%clk 0:02:59]} 2. Nf3 {[%clk 0:02:58]}  d5 {[%clk 0:02:59]} 3. exd5 {[%clk 0:02:57]}  e4 {[%clk 0:02:59]} 4. Qe2 {[%clk 0:02:57]}  Nf6 {[%clk 0:02:58]} 5. Nc3 {[%clk 0:02:57]}  Be7 {[%clk 0:02:58]} 6. Nxe4 {[%clk 0:02:49]}  Nxd5 {[%clk 0:02:58]} 7. Qd1 {[%clk 0:02:42]}  O-O {[%clk 0:02:57]} 8. Be2 {[%clk 0:02:41]}  c5 {[%clk 0:02:58]} 9. O-O {[%clk 0:02:41]}  Nc6 {[%clk 0:02:59]} 10. d3 {[%clk 0:02:40]}  Bf5 {[%clk 0:02:59]} 11. Ng3 {[%clk 0:02:39]}  Bg6 {[%clk 0:02:59]} 12. Re1 {[%clk 0:02:39]}  h6 {[%clk 0:02:56]} 13. Bf1 {[%clk 0:02:37]}  Qc7 {[%clk 0:02:56]} 14. a3 {[%clk 0:02:33]}  Rad8 {[%clk 0:02:56]} 15. Nd2 {[%clk 0:02:30]}  Nd4 {[%clk 0:02:52]} 16. c3 {[%clk 0:02:27]}  Ne6 {[%clk 0:02:47]} 17. Qg4 {[%clk 0:02:20]}  Ndf4 {[%clk 0:02:40]} 18. Nf5 {[%clk 0:02:11]}  Bf6 {[%clk 0:02:34]} 19. Ng3 {[%clk 0:02:03]}  h5 {[%clk 0:02:03]} 20. Qf3 {[%clk 0:02:02]}  Nxd3 {[%clk 0:02:03]} 21. Bxd3 {[%clk 0:01:57]}  Rxd3 {[%clk 0:02:04]} 22. Qe2 {[%clk 0:01:50]}  Nf4 {[%clk 0:02:03]} 23. Qf1 {[%clk 0:01:50]}  h4 {[%clk 0:01:56]} 24. Nde4 {[%clk 0:01:43]}  hxg3 {[%clk 0:01:46]} 25. Bxf4 {[%clk 0:01:42]}  Qxf4 {[%clk 0:01:36]} 26. Qxd3 {[%clk 0:01:42]}  gxf2+ {[%clk 0:01:36]} 0-1


[Site "https://www.chess.com"]